{"text_format":"1","workbook":"xlsx","n_sheets":1,"sheets":["Plantilla"],"not_rendered":{"charts":0,"images":1,"macros":1,"external_links":0,"defined_names":1,"comments":0,"pivot_tables":0},"unopened":[],"bounds":{"document_bytes":16777216,"sheet_cells":100000,"rows_first":2000,"rows_last":500,"rows_between":2000,"halvings":0,"cell_chars":16384,"cell_head_chars":4096},"cells_cut":0,"cells_raw":0,"read":"whole","date_system":"1900"}

{"sheet":"Plantilla","index":0,"n_rows":69,"n_cols":26,"rows_kept":69,"cut":false,"hidden":false,"merged":[]}
[]
[]
[null,null,null,"Plantilla Preliminar Distriución de PAC"]
[null,null,null,"Secretaría Distrital de Hacienda"]
[]
[]
[null,null,null,null,null,null,null,null,null,null,1,{"$f":"+K7+1","v":2},{"$f":"+L7+1","v":3},4,5,6,7,8,9,10,11,12,13,14]
[null,"Centro gestor","Descripción Cege","Pos.presupuestaria","Descripción Pospre","Programa presupuestario","Descripción Programa","Fondos","Descripción Fondo","PPTO total","Enero","Febrero","Marzo","Abril","Mayo","Junio","Julio","Agosto","Septiembre","Octubre","Noviembre","Diciembre","Rezago","SSF","Total Distribuido","Por Distribuir"]
[null,"0137-02","SECRETARÍA DISTRITAL DE SEGURIDAD, CONVIVENCIA Y JUSTICIA","O23201010030406","Otro equipo eléctrico y sus partes y piezas","O23011603480000007797","Modernización de la infraestructura de tecnología para la seguridad, la convivencia y la justicia en Bogotá","1-100-F039","VA-Crédito",43117104000,null,null,null,null,null,null,null,null,null,null,null,null,null,null,{"$f":"+SUM(K9:X9)","v":0},{"$f":"+J9-Y9","v":43117104000}]
[null,"0137-02","SECRETARÍA DISTRITAL DE SEGURIDAD, CONVIVENCIA Y JUSTICIA","O23201010030406","Otro equipo eléctrico y sus partes y piezas","O23011603480000007797","Modernización de la infraestructura de tecnología para la seguridad, la convivencia y la justicia en Bogotá","1-100-I015","VA-5% contratos de obra pública",34243896000,null,null,null,null,null,null,null,null,null,null,null,null,null,null,{"$f":"+SUM(K10:X10)","v":0},{"$f":"+J10-Y10","v":34243896000}]
[null,"0137-02","SECRETARÍA DISTRITAL DE SEGURIDAD, CONVIVENCIA Y JUSTICIA","O23201010030701","Vehículos automotores, remolques y semirremolques; y sus partes, piezas y accesorios","O23011603480000007792","Fortalecimiento de los organismos de seguridad y justicia en Bogotá","1-100-F039","VA-Crédito",26125000000,null,null,null,null,null,null,null,null,null,null,null,null,null,null,0,26125000000]
[null,"0137-02","SECRETARÍA DISTRITAL DE SEGURIDAD, CONVIVENCIA Y JUSTICIA","O23201010030701","Vehículos automotores, remolques y semirremolques; y sus partes, piezas y accesorios","O23011603480000007792","Fortalecimiento de los organismos de seguridad y justicia en Bogotá","1-100-I015","VA-5% contratos de obra pública",17909000000,null,null,null,null,null,null,null,null,null,null,null,null,null,null,0,17909000000]
[null,"0137-02","SECRETARÍA DISTRITAL DE SEGURIDAD, CONVIVENCIA Y JUSTICIA","O23201010030701","Vehículos automotores, remolques y semirremolques; y sus partes, piezas y accesorios","O23011603480000007792","Fortalecimiento de los organismos de seguridad y justicia en Bogotá","1-300-I011","REAF-5% contratos de obra pública",4200000000,null,null,null,null,null,null,null,null,null,null,null,null,null,null,0,4200000000]
[null,"0137-02","SECRETARÍA DISTRITAL DE SEGURIDAD, CONVIVENCIA Y JUSTICIA","O23201010030802","Equipo de alojamiento y campaña","O23011603480000007792","Fortalecimiento de los organismos de seguridad y justicia en Bogotá","1-100-F039","VA-Crédito",8606862000,null,null,null,null,null,null,null,null,null,null,null,null,null,null,0,8606862000]
[null,"0137-02","SECRETARÍA DISTRITAL DE SEGURIDAD, CONVIVENCIA Y JUSTICIA","O23201010030802","Equipo de alojamiento y campaña","O23011603480000007792","Fortalecimiento de los organismos de seguridad y justicia en Bogotá","1-100-I015","VA-5% contratos de obra pública",2940948000,null,null,null,null,null,null,null,null,null,null,null,null,null,null,0,2940948000]
[null,"0137-02","SECRETARÍA DISTRITAL DE SEGURIDAD, CONVIVENCIA Y JUSTICIA","O23201010030802","Equipo de alojamiento y campaña","O23011603480000007792","Fortalecimiento de los organismos de seguridad y justicia en Bogotá","1-100-I033","VA-Donaciones 110% con Bogotá",817790000,null,null,null,null,null,null,null,null,null,null,null,null,null,null,0,817790000]
[null,"0137-02","SECRETARÍA DISTRITAL DE SEGURIDAD, CONVIVENCIA Y JUSTICIA","O23201010030802","Equipo de alojamiento y campaña","O23011603480000007792","Fortalecimiento de los organismos de seguridad y justicia en Bogotá","1-200-I013","RB-5% contratos de obra pública",609190000,null,null,null,null,null,null,null,null,null,null,null,null,null,null,0,609190000]
[null,"0137-02","SECRETARÍA DISTRITAL DE SEGURIDAD, CONVIVENCIA Y JUSTICIA","O23201010030802","Equipo de alojamiento y campaña","O23011603480000007792","Fortalecimiento de los organismos de seguridad y justicia en Bogotá","1-400-I008","RF-5% Contratos de obra pública",2625147000,null,null,null,null,null,null,null,null,null,null,null,null,null,null,0,2625147000]
[null,"0137-02","SECRETARÍA DISTRITAL DE SEGURIDAD, CONVIVENCIA Y JUSTICIA","O23201010030804","Equipo militar y de seguridad","O23011603480000007792","Fortalecimiento de los organismos de seguridad y justicia en Bogotá","1-100-F039","VA-Crédito",21562000000,null,null,null,null,null,null,null,null,null,null,null,null,null,null,0,21562000000]
[null,"0137-02","SECRETARÍA DISTRITAL DE SEGURIDAD, CONVIVENCIA Y JUSTICIA","O23201010050201","Investigación y desarrollo","O23011603480000007792","Fortalecimiento de los organismos de seguridad y justicia en Bogotá","1-100-F039","VA-Crédito",16000000000,null,null,null,null,null,null,null,null,null,null,null,null,null,null,0,16000000000]
[null,"0137-02","SECRETARÍA DISTRITAL DE SEGURIDAD, CONVIVENCIA Y JUSTICIA","O23201010050201","Investigación y desarrollo","O23011603480000007797","Modernización de la infraestructura de tecnología para la seguridad, la convivencia y la justicia en Bogotá","1-100-F039","VA-Crédito",87900000000,null,null,null,null,null,null,null,null,null,null,null,null,null,null,0,87900000000]
[null,"0137-02","SECRETARÍA DISTRITAL DE SEGURIDAD, CONVIVENCIA Y JUSTICIA","O23201010050201","Investigación y desarrollo","O23011603480000007797","Modernización de la infraestructura de tecnología para la seguridad, la convivencia y la justicia en Bogotá","1-100-I015","VA-5% contratos de obra pública",22364000000,null,null,null,null,null,null,null,null,null,null,null,null,null,null,0,22364000000]
[null,"0137-02","SECRETARÍA DISTRITAL DE SEGURIDAD, CONVIVENCIA Y JUSTICIA","O2320201003053544203","Mezclas químicas para extintores","O23011603480000007783","Fortalecimiento de los equipamientos y capacidades del Sistema Distrital de Justicia en Bogotá","1-100-F039","VA-Crédito",70436000,null,null,null,null,null,null,null,null,null,null,null,null,null,null,0,70436000]
[null,"0137-02","SECRETARÍA DISTRITAL DE SEGURIDAD, CONVIVENCIA Y JUSTICIA","O2320202005030253290","Otras obras de ingeniería civil","O23011603480000007792","Fortalecimiento de los organismos de seguridad y justicia en Bogotá","1-100-F039","VA-Crédito",17700000000,null,null,null,null,null,null,null,null,null,null,null,null,null,null,0,17700000000]
[null,"0137-02","SECRETARÍA DISTRITAL DE SEGURIDAD, CONVIVENCIA Y JUSTICIA","O2320202005030253290","Otras obras de ingeniería civil","O23011603480000007792","Fortalecimiento de los organismos de seguridad y justicia en Bogotá","1-601-I013","PAS-5% contratos de obra pública",535325000,null,null,null,null,null,null,null,null,null,null,null,null,null,null,0,535325000]
[null,"0137-02","SECRETARÍA DISTRITAL DE SEGURIDAD, CONVIVENCIA Y JUSTICIA","O2320202005030253290","Otras obras de ingeniería civil","O23011603480000007792","Fortalecimiento de los organismos de seguridad y justicia en Bogotá","1-601-I037","PAS-Crédito",12332000000,null,null,null,null,null,null,null,null,null,null,null,null,null,null,0,12332000000]
[null,"0137-02","SECRETARÍA DISTRITAL DE SEGURIDAD, CONVIVENCIA Y JUSTICIA","O2320202005030253290","Otras obras de ingeniería civil","O23011603480000007797","Modernización de la infraestructura de tecnología para la seguridad, la convivencia y la justicia en Bogotá","1-100-F039","VA-Crédito",3500000000,null,null,null,null,null,null,null,null,null,null,null,null,null,null,0,3500000000]
[null,"0137-02","SECRETARÍA DISTRITAL DE SEGURIDAD, CONVIVENCIA Y JUSTICIA","O2320202005030253290","Otras obras de ingeniería civil","O23011603480000007797","Modernización de la infraestructura de tecnología para la seguridad, la convivencia y la justicia en Bogotá","1-100-I015","VA-5% contratos de obra pública",875000000,null,null,null,null,null,null,null,null,null,null,null,null,null,null,0,875000000]
[null,"0137-02","SECRETARÍA DISTRITAL DE SEGURIDAD, CONVIVENCIA Y JUSTICIA","O2320202005040154129","Servicios generales de construcción de otros edificios no residenciales","O23011603480000007792","Fortalecimiento de los organismos de seguridad y justicia en Bogotá","1-100-I015","VA-5% contratos de obra pública",6900000000,null,null,null,null,null,null,null,null,null,null,null,null,null,null,0,6900000000]
[null,"0137-02","SECRETARÍA DISTRITAL DE SEGURIDAD, CONVIVENCIA Y JUSTICIA","O2320202005040154129","Servicios generales de construcción de otros edificios no residenciales","O23011603480000007797","Modernización de la infraestructura de tecnología para la seguridad, la convivencia y la justicia en Bogotá","1-100-I015","VA-5% contratos de obra pública",3770000000,null,null,null,null,null,null,null,null,null,null,null,null,null,null,0,3770000000]
[null,"0137-02","SECRETARÍA DISTRITAL DE SEGURIDAD, CONVIVENCIA Y JUSTICIA","O2320202005040254290","Servicios generales de construcción de otras obras de ingeniería civil","O23011603480000007792","Fortalecimiento de los organismos de seguridad y justicia en Bogotá","1-100-I015","VA-5% contratos de obra pública",14638688000,null,null,null,null,null,null,null,null,null,null,null,null,null,null,0,14638688000]
[null,"0137-02","SECRETARÍA DISTRITAL DE SEGURIDAD, CONVIVENCIA Y JUSTICIA","O2320202005040254290","Servicios generales de construcción de otras obras de ingeniería civil","O23011603480000007792","Fortalecimiento de los organismos de seguridad y justicia en Bogotá","1-300-I011","REAF-5% contratos de obra pública",682312000,null,null,null,null,null,null,null,null,null,null,null,null,null,null,0,682312000]
[null,"0137-02","SECRETARÍA DISTRITAL DE SEGURIDAD, CONVIVENCIA Y JUSTICIA","O232020200663391","Servicios de catering para eventos","O23011603480000007767","Fortalecimiento de estrategias para la materialización de las disposiciones del Código Nacional de Seguridad y Convivencia Ciudadana en Bogotá","1-100-I018","VA-Multas código de Policía",295130000,null,null,null,null,null,null,null,null,null,null,null,null,null,null,0,295130000]
[null,"0137-02","SECRETARÍA DISTRITAL DE SEGURIDAD, CONVIVENCIA Y JUSTICIA","O232020200663391","Servicios de catering para eventos","O23011603480000007767","Fortalecimiento de estrategias para la materialización de las disposiciones del Código Nacional de Seguridad y Convivencia Ciudadana en Bogotá","1-300-I014","REAF-Multas código de Policía",110000000,null,null,null,null,null,null,null,null,null,null,null,null,null,null,0,110000000]
[null,"0137-02","SECRETARÍA DISTRITAL DE SEGURIDAD, CONVIVENCIA Y JUSTICIA","O232020200771341","Servicios de seguros por accidentes personales","O23011603480000007767","Fortalecimiento de estrategias para la materialización de las disposiciones del Código Nacional de Seguridad y Convivencia Ciudadana en Bogotá","1-100-I018","VA-Multas código de Policía",5500000,null,null,null,null,null,null,null,null,null,null,null,null,null,null,0,5500000]
[null,"0137-02","SECRETARÍA DISTRITAL DE SEGURIDAD, CONVIVENCIA Y JUSTICIA","O232020200771511","Servicios relacionados con fusiones y adquisiciones","O23011603480000007792","Fortalecimiento de los organismos de seguridad y justicia en Bogotá","1-100-F039","VA-Crédito",3262000000,null,null,null,null,null,null,null,null,null,null,null,null,null,null,0,3262000000]
[null,"0137-02","SECRETARÍA DISTRITAL DE SEGURIDAD, CONVIVENCIA Y JUSTICIA","O232020200772112","Servicios de alquiler o arrendamiento con o sin opción de compra, relativos a bienes inmuebles no residenciales (diferentes a vivienda), propios o arrendados","O23011603480000007783","Fortalecimiento de los equipamientos y capacidades del Sistema Distrital de Justicia en Bogotá","1-100-F001","VA-Recursos distrito",155131000,null,null,null,null,null,null,null,null,null,null,null,null,null,null,0,155131000]
[null,"0137-02","SECRETARÍA DISTRITAL DE SEGURIDAD, CONVIVENCIA Y JUSTICIA","O232020200772112","Servicios de alquiler o arrendamiento con o sin opción de compra, relativos a bienes inmuebles no residenciales (diferentes a vivienda), propios o arrendados","O23011603480000007783","Fortalecimiento de los equipamientos y capacidades del Sistema Distrital de Justicia en Bogotá","1-100-F039","VA-Crédito",2672709000,null,null,null,null,null,null,null,null,null,null,null,null,null,null,0,2672709000]
[null,"0137-02","SECRETARÍA DISTRITAL DE SEGURIDAD, CONVIVENCIA Y JUSTICIA","O232020200772112","Servicios de alquiler o arrendamiento con o sin opción de compra, relativos a bienes inmuebles no residenciales (diferentes a vivienda), propios o arrendados","O23011603480000007783","Fortalecimiento de los equipamientos y capacidades del Sistema Distrital de Justicia en Bogotá","1-200-I007","RB-ICA compañías de vigilancia",203656000,null,null,null,null,null,null,null,null,null,null,null,null,null,null,0,203656000]
[null,"0137-02","SECRETARÍA DISTRITAL DE SEGURIDAD, CONVIVENCIA Y JUSTICIA","O232020200772112","Servicios de alquiler o arrendamiento con o sin opción de compra, relativos a bienes inmuebles no residenciales (diferentes a vivienda), propios o arrendados","O23011603480000007783","Fortalecimiento de los equipamientos y capacidades del Sistema Distrital de Justicia en Bogotá","1-300-I006","REAF-ICA compañías de vigilancia",1535946000,null,null,null,null,null,null,null,null,null,null,null,null,null,null,0,1535946000]
[null,"0137-02","SECRETARÍA DISTRITAL DE SEGURIDAD, CONVIVENCIA Y JUSTICIA","O232020200883590","Otros servicios veterinarios","O23011603480000007792","Fortalecimiento de los organismos de seguridad y justicia en Bogotá","1-100-F039","VA-Crédito",1402000000,null,null,null,null,null,null,null,null,null,null,null,null,null,null,0,1402000000]
[null,"0137-02","SECRETARÍA DISTRITAL DE SEGURIDAD, CONVIVENCIA Y JUSTICIA","O232020200883611","Servicios integrales de publicidad","O23011603480000007797","Modernización de la infraestructura de tecnología para la seguridad, la convivencia y la justicia en Bogotá","1-100-I015","VA-5% contratos de obra pública",245000000,null,null,null,null,null,null,null,null,null,null,null,null,null,null,0,245000000]
[null,"0137-02","SECRETARÍA DISTRITAL DE SEGURIDAD, CONVIVENCIA Y JUSTICIA","O232020200883619","Otros servicios de publicidad","O23011603480000007767","Fortalecimiento de estrategias para la materialización de las disposiciones del Código Nacional de Seguridad y Convivencia Ciudadana en Bogotá","1-100-I018","VA-Multas código de Policía",310000000,null,null,null,null,null,null,null,null,null,null,null,null,null,null,0,310000000]
[null,"0137-02","SECRETARÍA DISTRITAL DE SEGURIDAD, CONVIVENCIA Y JUSTICIA","O232020200883990","Otros servicios profesionales, técnicos y empresariales n.c.p.","O23011603480000007767","Fortalecimiento de estrategias para la materialización de las disposiciones del Código Nacional de Seguridad y Convivencia Ciudadana en Bogotá","1-100-I018","VA-Multas código de Policía",3708440000,null,null,null,null,null,null,null,null,null,null,null,null,null,null,0,3708440000]
[null,"0137-02","SECRETARÍA DISTRITAL DE SEGURIDAD, CONVIVENCIA Y JUSTICIA","O232020200883990","Otros servicios profesionales, técnicos y empresariales n.c.p.","O23011603480000007767","Fortalecimiento de estrategias para la materialización de las disposiciones del Código Nacional de Seguridad y Convivencia Ciudadana en Bogotá","1-300-I014","REAF-Multas código de Policía",220000000,null,null,null,null,null,null,null,null,null,null,null,null,null,null,0,220000000]
[null,"0137-02","SECRETARÍA DISTRITAL DE SEGURIDAD, CONVIVENCIA Y JUSTICIA","O232020200883990","Otros servicios profesionales, técnicos y empresariales n.c.p.","O23011603480000007783","Fortalecimiento de los equipamientos y capacidades del Sistema Distrital de Justicia en Bogotá","1-100-F001","VA-Recursos distrito",4820329000,null,null,null,null,null,null,null,null,null,null,null,null,null,null,0,4820329000]
[null,"0137-02","SECRETARÍA DISTRITAL DE SEGURIDAD, CONVIVENCIA Y JUSTICIA","O232020200883990","Otros servicios profesionales, técnicos y empresariales n.c.p.","O23011603480000007783","Fortalecimiento de los equipamientos y capacidades del Sistema Distrital de Justicia en Bogotá","1-100-F039","VA-Crédito",34069175000,null,null,null,null,null,null,null,null,null,null,null,null,null,null,0,34069175000]
[null,"0137-02","SECRETARÍA DISTRITAL DE SEGURIDAD, CONVIVENCIA Y JUSTICIA","O232020200883990","Otros servicios profesionales, técnicos y empresariales n.c.p.","O23011603480000007783","Fortalecimiento de los equipamientos y capacidades del Sistema Distrital de Justicia en Bogotá","1-200-I007","RB-ICA compañías de vigilancia",184527000,null,null,null,null,null,null,null,null,null,null,null,null,null,null,0,184527000]
[null,"0137-02","SECRETARÍA DISTRITAL DE SEGURIDAD, CONVIVENCIA Y JUSTICIA","O232020200883990","Otros servicios profesionales, técnicos y empresariales n.c.p.","O23011603480000007783","Fortalecimiento de los equipamientos y capacidades del Sistema Distrital de Justicia en Bogotá","1-300-I006","REAF-ICA compañías de vigilancia",1472363000,null,null,null,null,null,null,null,null,null,null,null,null,null,null,0,1472363000]
[null,"0137-02","SECRETARÍA DISTRITAL DE SEGURIDAD, CONVIVENCIA Y JUSTICIA","O232020200883990","Otros servicios profesionales, técnicos y empresariales n.c.p.","O23011603480000007792","Fortalecimiento de los organismos de seguridad y justicia en Bogotá","1-100-F001","VA-Recursos distrito",2334331000,null,null,null,null,null,null,null,null,null,null,null,null,null,null,0,2334331000]
[null,"0137-02","SECRETARÍA DISTRITAL DE SEGURIDAD, CONVIVENCIA Y JUSTICIA","O232020200883990","Otros servicios profesionales, técnicos y empresariales n.c.p.","O23011603480000007792","Fortalecimiento de los organismos de seguridad y justicia en Bogotá","1-100-I015","VA-5% contratos de obra pública",8060000000,null,null,null,null,null,null,null,null,null,null,null,null,null,null,0,8060000000]
[null,"0137-02","SECRETARÍA DISTRITAL DE SEGURIDAD, CONVIVENCIA Y JUSTICIA","O232020200883990","Otros servicios profesionales, técnicos y empresariales n.c.p.","O23011603480000007792","Fortalecimiento de los organismos de seguridad y justicia en Bogotá","1-300-I011","REAF-5% contratos de obra pública",5857669000,null,null,null,null,null,null,null,null,null,null,null,null,null,null,0,5857669000]
[null,"0137-02","SECRETARÍA DISTRITAL DE SEGURIDAD, CONVIVENCIA Y JUSTICIA","O232020200883990","Otros servicios profesionales, técnicos y empresariales n.c.p.","O23011603480000007797","Modernización de la infraestructura de tecnología para la seguridad, la convivencia y la justicia en Bogotá","1-100-F001","VA-Recursos distrito",2084667000,null,null,null,null,null,null,null,null,null,null,null,null,null,null,0,2084667000]
[null,"0137-02","SECRETARÍA DISTRITAL DE SEGURIDAD, CONVIVENCIA Y JUSTICIA","O232020200883990","Otros servicios profesionales, técnicos y empresariales n.c.p.","O23011603480000007797","Modernización de la infraestructura de tecnología para la seguridad, la convivencia y la justicia en Bogotá","1-100-I015","VA-5% contratos de obra pública",7068333000,null,null,null,null,null,null,null,null,null,null,null,null,null,null,0,7068333000]
[null,"0137-02","SECRETARÍA DISTRITAL DE SEGURIDAD, CONVIVENCIA Y JUSTICIA","O23202020088714102","Servicio de mantenimiento y reparación de vehículos automóviles","O23011603480000007783","Fortalecimiento de los equipamientos y capacidades del Sistema Distrital de Justicia en Bogotá","1-100-F039","VA-Crédito",16400000,null,null,null,null,null,null,null,null,null,null,null,null,null,null,0,16400000]
[null,"0137-02","SECRETARÍA DISTRITAL DE SEGURIDAD, CONVIVENCIA Y JUSTICIA","O23202020088714102","Servicio de mantenimiento y reparación de vehículos automóviles","O23011603480000007783","Fortalecimiento de los equipamientos y capacidades del Sistema Distrital de Justicia en Bogotá","1-200-I007","RB-ICA compañías de vigilancia",4000000,null,null,null,null,null,null,null,null,null,null,null,null,null,null,0,4000000]
[null,"0137-02","SECRETARÍA DISTRITAL DE SEGURIDAD, CONVIVENCIA Y JUSTICIA","O23202020088714199","Servicio de mantenimiento y reparación de vehículos automotores n.c.p.","O23011603480000007783","Fortalecimiento de los equipamientos y capacidades del Sistema Distrital de Justicia en Bogotá","1-200-I007","RB-ICA compañías de vigilancia",15129000,null,null,null,null,null,null,null,null,null,null,null,null,null,null,0,15129000]
[null,"0137-02","SECRETARÍA DISTRITAL DE SEGURIDAD, CONVIVENCIA Y JUSTICIA","O23202020088715701","Servicio de mantenimiento y reparación de ascensores","O23011603480000007783","Fortalecimiento de los equipamientos y capacidades del Sistema Distrital de Justicia en Bogotá","1-100-F039","VA-Crédito",100000000,null,null,null,null,null,null,null,null,null,null,null,null,null,null,0,100000000]
[null,"0137-02","SECRETARÍA DISTRITAL DE SEGURIDAD, CONVIVENCIA Y JUSTICIA","O23202020088715999","Servicio de mantenimiento y reparación de otros equipos n.c.p.","O23011603480000007783","Fortalecimiento de los equipamientos y capacidades del Sistema Distrital de Justicia en Bogotá","1-100-F001","VA-Recursos distrito",20000000,null,null,null,null,null,null,null,null,null,null,null,null,null,null,0,20000000]
[null,"0137-02","SECRETARÍA DISTRITAL DE SEGURIDAD, CONVIVENCIA Y JUSTICIA","O23202020088715999","Servicio de mantenimiento y reparación de otros equipos n.c.p.","O23011603480000007783","Fortalecimiento de los equipamientos y capacidades del Sistema Distrital de Justicia en Bogotá","1-100-F039","VA-Crédito",86463000,null,null,null,null,null,null,null,null,null,null,null,null,null,null,0,86463000]
[null,"0137-02","SECRETARÍA DISTRITAL DE SEGURIDAD, CONVIVENCIA Y JUSTICIA","O232020200991290","Servicios de la administración pública relacionados con otros asuntos de orden público y seguridad","O23011603480000007767","Fortalecimiento de estrategias para la materialización de las disposiciones del Código Nacional de Seguridad y Convivencia Ciudadana en Bogotá","1-100-I018","VA-Multas código de Policía",740780000,null,null,null,null,null,null,null,null,null,null,null,null,null,null,0,740780000]
[null,"0137-02","SECRETARÍA DISTRITAL DE SEGURIDAD, CONVIVENCIA Y JUSTICIA","O232020200991290","Servicios de la administración pública relacionados con otros asuntos de orden público y seguridad","O23011603480000007767","Fortalecimiento de estrategias para la materialización de las disposiciones del Código Nacional de Seguridad y Convivencia Ciudadana en Bogotá","1-200-I016","RB-Multas código de Policía",1508596000,null,null,null,null,null,null,null,null,null,null,null,null,null,null,0,1508596000]
[null,"0137-02","SECRETARÍA DISTRITAL DE SEGURIDAD, CONVIVENCIA Y JUSTICIA","O232020200991290","Servicios de la administración pública relacionados con otros asuntos de orden público y seguridad","O23011603480000007767","Fortalecimiento de estrategias para la materialización de las disposiciones del Código Nacional de Seguridad y Convivencia Ciudadana en Bogotá","1-300-I014","REAF-Multas código de Policía",550657000,null,null,null,null,null,null,null,null,null,null,null,null,null,null,0,550657000]
[null,"0137-02","SECRETARÍA DISTRITAL DE SEGURIDAD, CONVIVENCIA Y JUSTICIA","O232020200991290","Servicios de la administración pública relacionados con otros asuntos de orden público y seguridad","O23011603480000007783","Fortalecimiento de los equipamientos y capacidades del Sistema Distrital de Justicia en Bogotá","1-100-F001","VA-Recursos distrito",60000000,null,null,null,null,null,null,null,null,null,null,null,null,null,null,0,60000000]
[null,"0137-02","SECRETARÍA DISTRITAL DE SEGURIDAD, CONVIVENCIA Y JUSTICIA","O232020200991290","Servicios de la administración pública relacionados con otros asuntos de orden público y seguridad","O23011603480000007783","Fortalecimiento de los equipamientos y capacidades del Sistema Distrital de Justicia en Bogotá","1-100-F039","VA-Crédito",161000000,null,null,null,null,null,null,null,null,null,null,null,null,null,null,0,161000000]
[null,"0137-02","SECRETARÍA DISTRITAL DE SEGURIDAD, CONVIVENCIA Y JUSTICIA","O232020200991290","Servicios de la administración pública relacionados con otros asuntos de orden público y seguridad","O23011603480000007792","Fortalecimiento de los organismos de seguridad y justicia en Bogotá","1-601-I013","PAS-5% contratos de obra pública",1712823000,null,null,null,null,null,null,null,null,null,null,null,null,null,null,0,1712823000]
[null,"0137-02","SECRETARÍA DISTRITAL DE SEGURIDAD, CONVIVENCIA Y JUSTICIA","O232020200992919","Otros tipos de servicios educativos y de formación, n.c.p.","O23011603480000007767","Fortalecimiento de estrategias para la materialización de las disposiciones del Código Nacional de Seguridad y Convivencia Ciudadana en Bogotá","1-100-I018","VA-Multas código de Policía",47045000,null,null,null,null,null,null,null,null,null,null,null,null,null,null,0,47045000]
[null,"0137-02","SECRETARÍA DISTRITAL DE SEGURIDAD, CONVIVENCIA Y JUSTICIA","O232020200995994","Otros servicios de apoyo para el mejoramiento del comportamiento cívico y de las infraestructuras comunitarias","O23011603480000007783","Fortalecimiento de los equipamientos y capacidades del Sistema Distrital de Justicia en Bogotá","1-100-F039","VA-Crédito",1718240000,null,null,null,null,null,null,null,null,null,null,null,null,null,null,0,1718240000]
[null,"0137-02","SECRETARÍA DISTRITAL DE SEGURIDAD, CONVIVENCIA Y JUSTICIA","O232020200995994","Otros servicios de apoyo para el mejoramiento del comportamiento cívico y de las infraestructuras comunitarias","O23011603480000007792","Fortalecimiento de los organismos de seguridad y justicia en Bogotá","1-601-I007","PAS-ICA compañías de vigilancia",96597000,null,null,null,null,null,null,null,null,null,null,null,null,null,null,0,96597000]